fUSD/lending_fUSD_20241107
["ID","MTS","AMOUNT","RATE_DAILY","PERIOD"]
[341557344,1730986232302,-288.0,0.00029172,2]
[341557345,1730986232312,-800.0,0.000292,10]
[341557346,1730986232322,-1100.0,0.000293,10]
[341557347,1730986232332,-3636.58,0.00029342,2]
[341557348,1730986232342,-1400.0,0.000294,10]
[341557349,1730986232351,-159.46,0.00029464,2]
[341557350,1730986232361,-200.0,0.000295,10]
[341557351,1730986232370,-200.0,0.000296,10]
[341557352,1730986232380,-640.68219954,0.00029699,2]
[341557353,1730986232390,-200.0,0.000297,10]
[341557354,1730986232402,-39210.0,0.000297,2]
[341557355,1730986232413,-165.58,0.00029758,2]
[341557356,1730986232423,-1000.0,0.00029769,2]
[341557358,1730986232433,-200.0,0.000298,10]
[341557360,1730986232443,-3636.58,0.00029814,2]
[341557362,1730986232452,-2165.739,0.00029814,24]
[341557363,1730986232462,-1000.0,0.00029885,2]
[341557364,1730986232472,-232.94,0.00029888,3]
[341557365,1730986232483,-704.57,0.00029888,10]
[341557366,1730986232493,-72630.16402843,0.00029898,2]
[341557367,1730986232502,-500.0,0.00029898,2]
[341557368,1730986232512,-500.0,0.00029898,2]
[341557369,1730986232524,-397.99847314,0.00029898,2]
[341557370,1730986232533,-500.0,0.00029898,2]
[341557371,1730986232544,-500.0,0.00029898,2]
[341557372,1730986232554,-500.0,0.00029898,2]
[341557373,1730986232565,-500.0,0.00029898,2]
[341557374,1730986232574,-500.0,0.00029898,2]
[341557375,1730986232584,-500.0,0.00029898,2]
[341557376,1730986232594,-543.4133846,0.00029898,2]
[341557377,1730986232604,-543.4133846,0.00029898,2]
[341557378,1730986232613,-543.4133846,0.00029898,2]
[341557379,1730986232623,-543.4133846,0.00029898,2]
[341557380,1730986232632,-543.4133846,0.00029898,2]
[341557381,1730986232641,-543.4133846,0.00029898,2]
[341557382,1730986232652,-543.4133846,0.00029898,2]
[341557383,1730986232661,-543.4133846,0.00029898,2]
[341557384,1730986232670,-543.4133846,0.00029898,2]
[341557385,1730986232679,-543.4133846,0.00029898,2]
[341557386,1730986232688,-543.4133846,0.00029898,2]
[341557387,1730986232697,-543.4133846,0.00029898,2]
[341557388,1730986232707,-543.4133846,0.00029898,2]
[341557389,1730986232716,-543.4133846,0.00029898,2]
[341557390,1730986232725,-543.4133846,0.00029898,2]
[341557391,1730986232734,-547.46008001,0.00029898,2]
[341557392,1730986232744,-547.46008001,0.00029898,2]
[341557393,1730986232753,-547.46008001,0.00029898,2]
[341557394,1730986232762,-547.46008001,0.00029898,2]
[341557395,1730986232772,-497.37132719,0.000299,2]
[341557396,1730986232781,-5800.0,0.000299,2]
[341557397,1730986232790,-879.0,0.000299,10]
[341557398,1730986232799,-2701.27602244,0.000299,2]
[341557399,1730986232808,-151.0,0.000299,7]
[341557400,1730986232818,-19851.37102102,0.000299,2]
[341557401,1730986232827,-182.44892986,0.000299,2]
[341557402,1730986232837,-2117.861972,0.000299,2]
[341557403,1730986232846,-151.0,0.000299,7]
[341557404,1730986232855,-151.0,0.000299,7]
[341557405,1730986232865,-190.098254,0.000299,7]
[341557406,1730986232874,-151.0,0.000299,7]
[341557407,1730986232883,-3021.891925,0.000299,7]
[341557408,1730986232893,-151.0,0.000299,7]
[341557409,1730986232905,-190.098254,0.000299,7]
[341557410,1730986232914,-3021.891925,0.000299,7]
[341557411,1730986232923,-151.0,0.000299,7]
[341557412,1730986232933,-500.0,0.00029973,5]
[341557413,1730986232942,-500.0,0.00029973,5]
[341557414,1730986232951,-402.26812891,0.00029973,5]
[341557415,1730986232961,-500.0,0.00029973,5]
[341557416,1730986232969,-500.0,0.00029973,5]
[341557417,1730986232979,-551.40337706,0.00029973,2]
[341557418,1730986232988,-500.0,0.00029973,5]
[341557419,1730986232998,-155.02142923,0.0002999,2]
[341557420,1730986233007,-155.02142923,0.0002999,2]
[341557421,1730986233016,-155.02142923,0.0002999,2]
[341557422,1730986233025,-151.0,0.00029996,7]
[341557423,1730986233035,-167.43197,0.00029996,7]
[341557424,1730986233045,-167.43197,0.00029996,7]
[341557425,1730986233055,-151.0,0.00029996,7]
[341557426,1730986233065,-174.791012,0.00029996,7]
[341557427,1730986233075,-174.791012,0.00029996,7]
[341557428,1730986233084,-151.0,0.00029997,7]
[341557429,1730986233094,-151.0,0.00029997,7]
[341557430,1730986233104,-162.600201,0.00029997,7]
[341557431,1730986233114,-162.600201,0.00029997,7]
[341557432,1730986233123,-151.0,0.00029997,7]
[341557433,1730986233133,-151.0,0.00029997,7]
[341557434,1730986233143,-151.0,0.00029997,7]
[341557435,1730986233155,-151.0,0.00029997,7]
[341557436,1730986233165,-151.0,0.00029997,7]
[341557437,1730986233174,-151.0,0.00029997,7]
[341557438,1730986233184,-151.0,0.00029997,7]
[341557439,1730986233194,-151.0,0.00029997,7]
[341557440,1730986233204,-151.0,0.00029997,7]
[341557441,1730986233214,-151.0,0.00029997,7]
[341557442,1730986233224,-151.0,0.00029997,7]
[341557443,1730986233233,-151.0,0.00029997,7]
[341557444,1730986233242,-151.0,0.00029997,7]
[341557445,1730986233252,-151.0,0.00029997,7]
[341557446,1730986233261,-151.0,0.00029997,7]
[341557447,1730986233271,-151.0,0.00029997,2]
[341557448,1730986233280,-151.0,0.00029997,7]
[341557449,1730986233289,-151.0,0.00029997,2]
[341557450,1730986233299,-151.0,0.00029997,7]
[341557451,1730986233308,-151.0,0.00029997,7]
[341557452,1730986233317,-1207.937783,0.00029997,7]
[341557453,1730986233327,-1207.937783,0.00029997,7]
[341557454,1730986233336,-151.0,0.00029997,7]
[341557455,1730986233345,-468.22584,0.00029997,7]
[341557456,1730986233354,-468.22584,0.00029997,7]
[341557457,1730986233364,-180.171997,0.00029997,7]
[341557458,1730986233373,-180.171997,0.00029997,7]
[341557459,1730986233383,-167.43197,0.00029997,7]
[341557460,1730986233392,-167.43197,0.00029997,7]
[341557461,1730986233404,-174.791012,0.00029997,7]
[341557462,1730986233414,-174.791012,0.00029997,7]
[341557463,1730986233424,-7500.0,0.00029998,2]
[341557464,1730986233434,-32874.32071961,0.00029999,2]
[341557465,1730986233444,-111199.54824974,0.00029999,2]
[341557466,1730986233453,-500.0,0.00029999,7]
[341557467,1730986233463,-151.0,0.00029999,7]
[341557468,1730986233473,-151.0,0.00029999,7]
[341557469,1730986233482,-294.960609,0.00029999,7]
[341557470,1730986233492,-183.000999,0.00029999,7]
[341557471,1730986233502,-151.0,0.00029999,7]
[341557472,1730986233512,-151.0,0.00029999,7]
[341557473,1730986233527,-151.0,0.00029999,7]
[341557474,1730986233536,-151.0,0.00029999,7]
[341557475,1730986233545,-162.600201,0.00029999,7]
[341557476,1730986233555,-162.600201,0.00029999,7]
[341557477,1730986233565,-151.0,0.00029999,7]
[341557478,1730986233575,-151.0,0.00029999,7]
[341557479,1730986233585,-151.0,0.00029999,7]
[341557480,1730986233595,-151.0,0.00029999,7]
[341557481,1730986233606,-151.0,0.00029999,7]
[341557482,1730986233616,-151.0,0.00029999,7]
[341557483,1730986233625,-151.0,0.00029999,7]
[341557484,1730986233635,-151.0,0.00029999,7]
[341557485,1730986233644,-151.0,0.00029999,7]
[341557486,1730986233656,-151.0,0.00029999,7]
[341557487,1730986233666,-7182.96416059,0.00029999,2]
[341557488,1730986233822,-317.03583941,0.00029999,2]
[341557489,1730986233832,-7500.0,0.00029999,2]
[341557490,1730986233842,-5629.37850835,0.00029999,2]
[341557491,1730986233852,-151.0,0.00029999,7]
[341557492,1730986233862,-151.0,0.00029999,7]
[341557493,1730986233872,-191.021053,0.00029999,7]
[341557494,1730986233882,-155.840938,0.00029999,7]
[341557495,1730986233893,-151.0,0.00029999,2]
[341557496,1730986233904,-151.0,0.00029999,2]
[341557497,1730986233914,-151.0,0.00029999,7]
[341557498,1730986233924,-151.0,0.00029999,7]
[341557499,1730986233934,-1207.937783,0.00029999,7]
[341557500,1730986233943,-1207.937783,0.00029999,7]
[341557501,1730986233954,-151.0,0.00029999,7]
[341557502,1730986233964,-468.22584,0.00029999,7]
[341557503,1730986233974,-180.171997,0.00029999,7]
[341557504,1730986233984,-468.22584,0.00029999,7]
[341557505,1730986233994,-180.171997,0.00029999,7]
[341557506,1730986234004,-167.43197,0.00029999,7]
[341557507,1730986234013,-167.43197,0.00029999,7]
[341557508,1730986234023,-174.791012,0.00029999,7]
[341557509,1730986234033,-174.791012,0.00029999,7]
[341557510,1730986234044,-151.0,0.00029999,7]
[341557511,1730986234054,-151.0,0.00029999,7]
[341557512,1730986234064,-151.0,0.00029999,7]
[341557513,1730986234074,-151.0,0.00029999,7]
[341557514,1730986234084,-199.177222,0.00029999,7]
[341557515,1730986234094,-190.098254,0.00029999,7]
[341557516,1730986234103,-190.098254,0.00029999,7]
[341557517,1730986234113,-151.0,0.00029999,7]
[341557518,1730986234123,-151.0,0.00029999,7]
[341557519,1730986234133,-190.098254,0.00029999,7]
[341557520,1730986234143,-190.098254,0.00029999,7]
[341557521,1730986234154,-3021.891925,0.00029999,7]
[341557522,1730986234165,-3021.891925,0.00029999,7]
[341557523,1730986234175,-3021.891925,0.00029999,7]
[341557524,1730986234185,-151.0,0.00029999,7]
[341557525,1730986234195,-151.0,0.00029999,7]
[341557526,1730986234204,-3021.891925,0.00029999,7]
[341557527,1730986234214,-178.8825,0.0003,2]
[341557528,1730986234224,-14116.35601924,0.0003,5]
[341557529,1730986234236,-1220169.83087253,0.0003,5]
[341557530,1730986238405,-587.14,0.00029888,10]
[341557531,1730986238414,-151.0,0.000299,7]
[341557532,1730986238424,-122.30091199,0.000299,7]
[341557541,1730986238772,-28.69908801,0.000299,7]
[341557542,1730986238782,-151.0,0.000299,7]
[341557543,1730986238791,-500.0,0.00029998,2]
[341557544,1730986238800,-500.0,0.00029998,2]
[341557545,1730986238809,-500.0,0.00029998,2]
[341557546,1730986238819,-191.96001456,0.00029998,2]
[341557547,1730986238850,-308.03998544,0.00029998,2]
[341557548,1730986238859,-500.0,0.00029998,2]
[341557549,1730986238868,-500.0,0.00029998,2]
[341557550,1730986238878,-500.0,0.00029998,2]
[341557551,1730986238887,-500.0,0.00029998,2]
[341557552,1730986238896,-500.0,0.00029998,2]
[341557553,1730986238915,-500.0,0.00029998,2]
[341557554,1730986238924,-242.52095125,0.00029998,2]
[341557555,1730986238935,-257.47904875,0.00029998,2]
[341557556,1730986238944,-500.0,0.00029998,2]
[341557557,1730986238953,-382.74303318,0.00029998,2]
[341557558,1730986238965,-117.25696682,0.00029998,2]
[341557559,1730986238974,-500.0,0.00029998,2]
[341557560,1730986238983,-500.0,0.00029998,2]
[341557561,1730986238992,-500.0,0.00029998,2]
[341557562,1730986239001,-501.1409118,0.00029998,2]
[341557563,1730986239011,-500.0,0.00029998,2]
[341557564,1730986239020,-151.0,0.00029999,7]
[341557565,1730986239029,-151.0,0.00029999,7]
[341557566,1730986239039,-270.60210138,0.0003,5]
[341557609,1730986240022,-151.0,0.00029999,7]
[341557612,1730986240032,-151.0,0.00029999,7]
[341557615,1730986240041,-151.0,0.00029999,7]
[341557617,1730986240051,-280786.57947773,0.0003,5]
[341557655,1730986240251,-714.50004878,0.0003,5]
[341557657,1730986240263,-1938.28879912,0.0003,5]
[341557769,1730986243663,-262.53340878,0.00029998,2]
[341557770,1730986243689,-237.46659122,0.00029998,2]
[341557771,1730986243699,-34479.86363303,0.0003,5]
[341557772,1730986243710,-11629.0994816,0.0003,5]
[341557773,1730986243780,-32808.35010149,0.0003,5]
[341557774,1730986243813,-276183.72090584,0.0003,5]
[341557775,1730986243879,-444.16580054,0.0003,5]
[341557793,1730986246345,-5025.75461757,0.0003,5]
[341557794,1730986246373,-3931.24741529,0.0003,5]
[341557795,1730986261421,300.0,0.00019725,2]
[341557796,1730986262463,420.0,0.00021484,2]
[341557797,1730986263064,587.0,0.00023401,2]
[341557798,1730986269337,105.00181912,8.623e-05,2]
[341557799,1730986269622,48.72318088,8.623e-05,2]
[341557801,1730986398221,153.72507268,0.00015342,2]
[341557802,1730986398245,4.62492732,0.00015342,2]
[341557806,1730986924012,151.79520601,0.00015342,2]
[341557807,1730986924039,8.30479399,0.00015342,2]
[341557808,1730986928069,151.795,8.571e-05,2]
[341557809,1730987066047,5000.0,0.0002011,10]
[341557811,1730987141421,150.0,0.00018123,2]
[341557812,1730987145557,185.299,8.1e-05,2]
[341557813,1730987225117,-892.0,0.000238,3]
[341557814,1730987225139,-901.16,0.00026141,2]
[341557815,1730987225160,-150.0,0.00026907,2]
[341557816,1730987225182,-153.84,0.00027445,2]
[341557817,1730987225204,-2007.00777243,0.0002777,2]
[341557818,1730987345185,-161.658,0.0002045,2]
[341557819,1730987345207,-250.0,0.00021,2]
[341557820,1730987345227,-300.0,0.00023,2]
[341557821,1730987345248,-161.681,0.0002495,2]
[341557822,1730987345271,-350.0,0.00025,2]
[341557823,1730987345293,-161.654,0.0002595,7]
[341557824,1730987345314,-3340.04,0.00026792,2]
[341557825,1730987345335,-162.12,0.0002695,10]
[341557826,1730987345355,-400.0,0.00027,2]
[341557827,1730987345377,-3340.04,0.00027222,2]
[341557828,1730987345398,-545.5813887,0.00027653,2]
[341557829,1730987345427,-2794.4586113,0.00027653,2]
[341557830,1730987345448,-155.27,0.00027702,2]
[341557831,1730987345469,-908.88036302,0.00027747,2]
[341557832,1730987345489,-1000.0,0.00027747,2]
[341557833,1730987345513,-20557.74348716,0.0002777,2]
[341557834,1730987350295,-1335.24874041,0.0002777,2]
[341557835,1730987350316,-349.28,0.00027811,120]
[341557836,1730987350338,-155.27,0.00027841,2]
[341557837,1730987350358,-782.43,0.00027869,2]
[341557838,1730987350402,-155.27,0.00027979,2]
[341557839,1730987350424,-3340.04,0.00028083,2]
[341557840,1730987350444,-5725.36,0.0002836,2]
[341557841,1730987350464,-901.16,0.00028404,2]
[341557842,1730987350482,-370.13,0.00028445,2]
[341557843,1730987359127,-3340.04,0.00028514,2]
[341557844,1730987364093,-166.4,0.0002856,2]
[341557845,1730987364116,-211.7,0.0002859,2]
[341557846,1730987364139,-190.87,0.000286,30]
[341557847,1730987364160,-106.93870434,0.00028611,2]
[341557848,1730987392720,1907.0,0.000239,3]
[341557849,1730987403889,6606.65036893,0.00018298,2]
[341557850,1730987405522,150.0,0.00018123,2]
[341557851,1730987422184,187.78,0.00028218,2]
[341557852,1730987428316,2000.0,0.00028218,120]
[341557892,1730987432328,-62.57129566,0.00028611,2]
[341557894,1730987432339,-153.75,0.00028761,2]
[341557896,1730987432348,-1820.1129587,0.000289,2]
[341557898,1730987432360,-3172.82624695,0.000289,2]
[341557900,1730987432369,-4760.98722146,0.000289,2]
[341557903,1730987432385,-9762.15440256,0.000289,2]
[341557905,1730987432397,-1317.31003931,0.000289,2]
[341557907,1730987432407,-350.98757749,0.000289,2]
[341557909,1730987432417,-203.41295325,0.000289,2]
[341557911,1730987432426,-223.12459467,0.000289,5]
[341557913,1730987432436,-1212.49377129,0.000289,2]
[341557915,1730987432446,-3340.04,0.00028944,2]
[341557917,1730987432455,-500.0,0.00028973,5]
[341557918,1730987432465,-500.34965439,0.00028973,5]
[341557919,1730987432475,-216.59,0.0002899,3]
[341557921,1730987432484,-180.49,0.0002899,3]
[341557923,1730987432493,-289.49,0.0002899,2]
[341557925,1730987432502,-578.76087745,0.0002899,2]
[341557927,1730987432512,-578.76087745,0.0002899,2]
[341557929,1730987432521,-578.76087745,0.0002899,2]
[341557931,1730987432531,-553.13,0.0002899,10]
[341557933,1730987432540,-304.91169602,0.00028999,120]
[341557935,1730987432549,-500.0,0.00028999,2]
[341557937,1730987432559,-500.0,0.00028999,2]
[341557940,1730987432568,-500.0,0.00028999,2]
[341557943,1730987432580,-500.0,0.00028999,2]
[341557946,1730987432589,-500.0,0.00028999,2]
[341557948,1730987432599,-500.0,0.00028999,2]
[341557950,1730987432608,-500.0,0.00028999,2]
[341557952,1730987432618,-500.0,0.00028999,2]
[341557954,1730987432627,-350.79863826,0.00028999,2]
[341557956,1730987432637,-500.0,0.00028999,2]
[341557958,1730987432646,-500.0,0.00028999,2]
[341557960,1730987432655,-200.0,0.00028999,2]
[341557962,1730987432665,-500.0,0.00028999,2]
[341557964,1730987432674,-500.0,0.00028999,2]
[341557966,1730987432683,-500.0,0.00028999,2]
[341557968,1730987432692,-500.0,0.00028999,2]
[341557970,1730987432702,-500.0,0.00028999,2]
[341557972,1730987432711,-200.0,0.00028999,2]
[341557974,1730987432721,-500.0,0.00028999,2]
[341557976,1730987432730,-476.22174767,0.00028999,2]
[341557977,1730987432739,-500.0,0.00028999,2]
[341557978,1730987432749,-500.0,0.00028999,2]
[341557979,1730987432758,-500.0,0.00029,2]
[341557980,1730987432769,-500.0,0.00029,3]
[341557981,1730987432779,-500.0,0.00029,4]
[341557982,1730987432789,-2240494.19618661,0.00029,2]
[341557983,1730987432802,-351408.85077294,0.00029,2]
[341557984,1730987432838,-49792.18640763,0.00029,2]
[341557985,1730987432851,-4085.69628672,0.00029,2]
[341557986,1730987438361,-1276.54809273,0.000289,2]
[341557987,1730987438371,-269.51536051,0.000289,2]
[341557988,1730987438381,-11860.29777628,0.00029,2]
[341557989,1730987438468,-992.6865759,0.00029,2]
[341557990,1730987438480,-299.4477,0.00029,2]
[341557992,1730987441047,153.62,0.00015342,2]
[341557993,1730987441289,153.62,0.00023452,2]
[341558004,1730987443643,-1559.80161734,0.000289,2]
[341558005,1730987443656,-1908.69833975,0.000289,2]
[341558007,1730987443667,-41.9176925,0.000289,2]
[341558008,1730987443676,-815.77465097,0.00029,2]
[341558010,1730987443726,-714.68988619,0.00029,2]
[341558011,1730987443753,-395.48039178,0.00029,2]
[341558012,1730987443765,-1040.52122974,0.00029,2]
[341558013,1730987443776,-5865.52652373,0.00029,2]
[341558014,1730987443788,-449.242,0.00029,2]
[341558015,1730987443830,-522.50865573,0.00029,2]
[341558016,1730987443842,-250.69,0.00029,2]
[341558017,1730987443854,-332.54659203,0.00029,2]
[341558018,1730987443888,-500.0,0.00028999,2]
[341558019,1730987443902,-4805.88527396,0.00029,2]
[341558020,1730987443914,-2040.57804515,0.00029,2]
[341558021,1730987443926,-1499.8177047,0.00029,2]
[341558023,1730987443939,-935.46860713,0.00029,2]
[341558027,1730987443968,-4426.88633819,0.00029,2]
[341558030,1730987443984,-547.52749393,0.00029,2]
[341558032,1730987443996,-497.20303795,0.00029,2]
[341558039,1730987444056,-300.56849228,0.00029,2]
[341558044,1730987444102,-450048.72337046,0.00029,2]
[341558046,1730987444111,-417.000009,0.00029,5]
[341558047,1730987444124,-3715.33,0.00029,7]
[341558050,1730987444135,-3298.06,0.00029,7]
[341558052,1730987444146,-15840.45166327,0.00029011,15]
[341558053,1730987444156,-412.93,0.00029031,120]
[341558055,1730987444166,-1212.49377123,0.00029043,2]
[341558056,1730987444176,-15840.45166327,0.00029122,15]
[341558058,1730987444186,-250.0,0.00029172,2]
[341558060,1730987444196,-1212.49377123,0.00029186,2]
[341558062,1730987444206,-15840.45166327,0.00029233,15]
[341558064,1730987444215,-1212.49377123,0.00029329,2]
[341558066,1730987444225,-15840.45166327,0.00029344,15]
[341558068,1730987444234,-3340.04,0.00029375,2]
[341558069,1730987444243,-203.41295325,0.000294,2]
[341558070,1730987444253,-269.5153605,0.000294,2]
[341558071,1730987444262,-15840.45166327,0.00029456,15]
[341558072,1730987444272,-406.0020714,0.000295,30]
[341558073,1730987444282,-383.49202455,0.000295,2]
[341558075,1730987444291,-15840.45166327,0.00029567,15]
[341558077,1730987444300,-217.27,0.000296,2]
[341558079,1730987444310,-15840.45166327,0.00029678,15]
[341558080,1730987444319,-383.49202456,0.0002968,2]
[341558081,1730987444329,-11232.50218397,0.000297,2]
[341558082,1730987444339,-15840.45166327,0.00029789,15]
[341558083,1730987444348,-3340.04,0.00029805,2]
[341558084,1730987444358,-370.13,0.00029868,2]
[341558085,1730987444367,-500.0,0.00029873,5]
[341558086,1730987444377,-152.79083492,0.00029873,2]
[341558087,1730987444387,-500.0,0.00029873,5]
[341558088,1730987444396,-500.0,0.00029873,5]
[341558089,1730987444406,-500.0,0.00029873,5]
[341558090,1730987444415,-384.10127836,0.00029897,2]
[341558091,1730987444425,-2085.91453782,0.00029899,2]
[341558092,1730987444434,-30868.4262298,0.000299,3]
[341558093,1730987444444,-1033.92382515,0.000299,120]
[341558094,1730987444453,-1600.0,0.000299,50]
[341558095,1730987444463,-5800.0,0.000299,2]
[341558096,1730987444473,-415.76730335,0.000299,10]
[341558097,1730987444482,-161.7366972,0.000299,10]
[341558098,1730987444492,-15840.45166327,0.000299,15]
[341558099,1730987444501,-500.0,0.000299,3]
[341558100,1730987444511,-203.41295325,0.000299,2]
[341558101,1730987444520,-500.0,0.00029973,5]
[341558102,1730987444530,-603.6129059,0.00029973,5]
[341558103,1730987444540,-500.0,0.00029973,5]
[341558104,1730987444550,-524.88216071,0.00029973,5]
[341558105,1730987444559,-205.18968041,0.00029973,5]
[341558106,1730987444569,-283.89214112,0.00029973,5]
[341558107,1730987444578,-500.0,0.00029973,5]
[341558108,1730987444588,-500.0,0.00029973,5]
[341558109,1730987444597,-5468.28339885,0.00029996,2]
[341558110,1730987444607,-595.4962484,0.00029999,2]
[341558111,1730987444617,-595.4962484,0.00029999,2]
[341558112,1730987444627,-297.7481242,0.00029999,2]
[341558113,1730987444636,-297.7481242,0.00029999,2]
[341558114,1730987444646,-26808.32675945,0.00029999,2]
[341558115,1730987444656,-500.0,0.00029999,7]
[341558116,1730987444665,-787050.27949863,0.0003,5]
[341558118,1730987446517,-3510.41764958,0.000294,2]
[341558119,1730987446528,-269.5153605,0.000299,2]
[341558120,1730987446539,-2127519.86466062,0.0003,5]
[341558121,1730987446991,-494797.50287236,0.0003,5]
[341558124,1730987462800,208.9488045,0.00023,2]
[341558125,1730987540277,319.60542759,0.000256,3]
[341558126,1730987540298,394.68385852,0.000256,3]
[341558127,1730987569224,150.0,0.00018123,2]
[341558128,1730987610679,150.0,0.00018123,2]
[341558130,1730987881658,300.0,0.00019725,2]
[341558132,1730988003996,175.8,0.00015342,2]
[341558133,1730988159718,2110.0,0.0002661,30]
[341558134,1730988181380,300.0,0.00019725,2]
[341558135,1730988241364,300.0,0.00019725,2]
[341558136,1730988301338,297.0,0.00019725,2]
[341558137,1730988310535,-175.8,0.00021745,2]
[341558138,1730988310558,-247.35138997,0.00021758,2]
[341558139,1730988310583,-214.48,0.00021858,2]
[341558141,1730988385599,-494.70277994,0.00022855,2]
[341558142,1730988385623,-189.76713773,0.00022955,2]
[341558143,1730988385645,-150.99,0.00022955,2]
[341558144,1730988385667,-2856.90869236,0.00022955,2]
[341558145,1730988405137,-74.61130764,0.00022955,2]
[341558146,1730988405163,-972.07565374,0.00024924,2]
[341558147,1730988405187,-229.91399591,0.000256,3]
[341558148,1730988405739,1000.0,0.0002661,30]
[341558149,1730988442115,-9.79671798,0.000256,3]
[341558150,1730988442137,-2338.0,0.000256,3]
[341558151,1730988442162,-1342.99,0.00025622,2]
[341558152,1730988442186,-1478.84,0.00026894,2]
[341558153,1730988442209,-247.08284596,0.00026894,2]
[341558154,1730988442237,-5590.50715404,0.00026894,2]
[341558155,1730988442262,-223.89,0.00026994,2]
[341558156,1730988442285,-1115.41,0.00026994,2]
[341558157,1730988442307,-450.0,0.00027149,2]
[341558158,1730988442331,-7182.9,0.0002715,2]
[341558159,1730988442353,-250.0,0.00027356,2]
[341558160,1730988442375,-1298.67482775,0.000274,7]
[341558161,1730988443310,-301.3898164,0.000274,7]
[341558162,1730988443331,-5.51941904,0.00027409,2]
[341558163,1730988553104,-189.76713771,0.00025522,2]
[341558164,1730988553398,-14251.021311,0.00027119,2]
[341558165,1730988553440,-189.76713771,0.00027256,2]
[341558166,1730988553461,-959.53058096,0.00027409,2]
[341558167,1730988553482,-250.0,0.00027435,2]
[341558168,1730988553507,-1244.84,0.00027504,2]
[341558169,1730988553529,-1042.53,0.00027517,2]
[341558170,1730988553549,-6699.14,0.00027555,2]
[341558171,1730988553571,-160.867206,0.00027585,2]
[341558172,1730988553592,-487.12,0.00027667,2]
[341558173,1730988553614,-285.87,0.00027707,30]
[341558174,1730988553636,-800.0,0.00027759,2]
[341558175,1730988553658,-23900.0,0.00027781,2]
[341558176,1730988553678,-2000.0,0.0002787,120]
[341558177,1730988553699,-1342.99,0.00027886,2]
[341558178,1730988553718,-1022.42,0.00027911,2]
[341558179,1730988553741,-166.74,0.00027916,2]
[341558180,1730988553762,-200.0,0.00028027,2]
[341558181,1730988553783,-175.8,0.00028147,2]
[341558182,1730988553805,-155.5,0.00028373,2]
[341558183,1730988553826,-155.5,0.0002839,2]
[341558184,1730988553849,-155.5,0.00028406,2]
[341558185,1730988553870,-155.5,0.00028423,2]
[341558186,1730988553891,-509.41,0.00028438,2]
[341558187,1730988553912,-155.5,0.0002844,2]
[341558188,1730988553934,-155.5,0.00028456,2]
[341558189,1730988553956,-212.63685334,0.00028458,2]
[341558190,1730988553977,-500.0,0.00028473,5]
[341558191,1730988554001,-155.5,0.00028473,2]
[341558192,1730988554024,-155.5,0.0002849,2]
[341558193,1730988554045,-155.5,0.00028507,2]
[341558194,1730988554066,-155.5,0.00028523,2]
[341558195,1730988554163,200.0,0.00027858,7]
[341558205,1730988632820,-2241.54472241,0.0002853,2]
[341558206,1730988632832,-4520.39527759,0.0002853,2]
[341558207,1730988632842,-155.5,0.0002854,2]
[341558208,1730988632852,-155.5,0.00028557,2]
[341558209,1730988632862,-155.5,0.00028573,2]
[341558210,1730988632872,-155.5,0.0002859,2]
[341558212,1730988632882,-155.5,0.00028607,2]
[341558213,1730988632891,-155.5,0.00028623,2]
[341558215,1730988632900,-155.5,0.0002864,2]